Cogmind - Beta 16 @@@ ROGUE MODE // 2025.10.23 @ 18:14:05 Player: Anting Result: Destroyed by 3X-OCX(R) with Subdweller Machine Gun Performance ------------- Evolutions (0) 0 Regions Visited (2) 400 Robots Destroyed (9) 45 Value Destroyed (237) 237 Prototype IDs (1) 20 Alien Tech Used (0) 0 Bonus (0) 0 TOTAL SCORE: 702 Bonus ------- None Cogmind --------- Core Integrity 0/250 Matter 239/300 Energy 84/100 System Corruption 0% Temperature Cool (0) Movement Core (50) Location -10/Subcaves Parts ------- > --- POWER (1) -------- (None) > --- PROPULSION (2) --- (None) > --- UTILITY (2) ------ Power Bank > --- WEAPON (2) ------- (None) > --- INVENTORY (5) ---- Subdweller Monowheel High-capacity Storage Unit Peak State ------------ > --- POWER ------------ Subdweller Power Source > --- PROPULSION ------- Light Treads Aluminum Leg > --- UTILITY ---------- Disposable Heat Sink High-capacity Storage Unit > --- WEAPON ----------- Subdweller Laser Subdweller Beam Cannon > --- INVENTORY -------- Subdweller Power Source Aluminum Leg Subdweller Monowheel Subdweller Monowheel Subdweller Monowheel Subdweller Monowheel Disposable Heat Sink Humpback Subdweller Optics Scrap Shield Power Bank Light Assault Rifle Light Assault Rifle Scrap Shield Fragment Scrap Shield Fragment Scrap Shield Fragment Scrap Shield Fragment [Rating: 15] Favorites ----------- Power Light Ion Engine Engine Light Ion Engine Propulsion Light Treads Treads Light Treads Leg Aluminum Leg Wheel Subdweller Monowheel Utility High-capacity Storage Unit Device Improved Terrain Scanner Storage High-capacity Storage Unit Protection Scrap Shield Weapon Light Assault Rifle Energy Gun Subdweller Laser Energy Cannon Subdweller Beam Cannon Ballistic Gun Light Assault Rifle Build | -11 -10 -10 ------- Run | Yrd Mat Sub Slots Evolved . | . . . Power . | . . . Propulsion . | . . . Utility . | . . . Weapon . | . . . Parts Attached 16 | 4 1 11 Power 2 | . 1 1 Engine 2 | . 1 1 Core . | . . . Reactor . | . . . Propulsion 4 | 2 . 2 Treads 2 | 2 . . Leg 1 | . . 1 Wheel 1 | . . 1 Hover . | . . . Flight . | . . . Utility 5 | . . 5 Device 3 | . . 3 Storage 1 | . . 1 Processor . | . . . Hackware . | . . . Protection 1 | . . 1 Artifact . | . . . Weapon 5 | 2 . 3 Energy Gun 1 | . . 1 Energy Cannon 1 | . . 1 Ballistic Gun 3 | 2 . 1 Ballistic Cannon . | . . . Launcher . | . . . Special Weapon . | . . . Impact Weapon . | . . . Slashing Weapon . | . . . Piercing Weapon . | . . . Special Melee Weapon . | . . . Unidentified Prototypes 1 | . . 1 Parts Lost 9 | . . 9 Power 2 | . . 2 Propulsion 2 | . . 2 Utility 2 | . . 2 Weapon 3 | . . 3 Highest Loss Streak 4 | . . 4 To Critical Strikes . | . . . Average Backups 6 | . 4 7 Power . | . . . Propulsion 2 | . 2 2 Utility 2 | . . 2 Weapon 1 | . . 1 Tool/Special . | . . . Unused Backups 8 | . . 8 Power 1 | . . 1 Propulsion 4 | . . 4 Utility 3 | . . 3 Weapon . | . . . Tool/Special . | . . . Average Slot Usage (%) 86 | . 57 92 Engine 10 | . . 12 Treads 22 | . 28 21 Leg 3 | . . 4 Device 10 | . . 12 Storage 10 | . . 12 Energy Gun 4 | . . 5 Energy Cannon 3 | . . 3 Ballistic Gun 18 | . 27 17 Peak Build Rating 15 | 4 5 15 Average Rating 9 | 2 4 10 On Entrance 3 | . 4 5 Avg Prop Armor Cover (%) 21 | 31 28 9 Naked Turns 63 | . . 63 Heaviest Build 58 | 2 5 58 Greatest Support 40 | 40 20 40 Greatest Overweight (x) 2 | . 1 2 Average Overweight (x) . | . . . Largest Inventory Capacity 20 | 5 5 20 Average Capacity 16 | 5 5 18 Most Carried 19 | 2 5 19 Average Carried 8 | . 4 9 Final Capacity 5 | 5 5 5 Final Carried 5 | 2 5 2 Class Distribution -------------------- 76% | Mutant 23% | Scavenger-Mutant Dominant Class ---------------- Mutant | -10/Materials Mutant | -10/Subcaves Resources | -11 -10 -10 ----------- Run | Yrd Mat Sub Matter Collected 405 | 208 25 172 Remotely . | . . . Salvage Created 304 | . 75 229 Parts 28 | . 12 16 Haulers Intercepted . | . . . Recyclers Shooed . | . . . Parts Field Recycled . | . . . Retrieved Matter . | . . . Parts Self-Destructed . | . . . Prevented . | . . . Parts Restored . | . . . Kills | -11 -10 -10 ------- Run | Yrd Mat Sub Combat Hostiles Destroyed 8 | . 3 5 Guns 7 | . 3 4 Cannons 1 | . . 1 Classes Destroyed 3 | . 2 1 Tunneler 1 | . 1 . Swarmer 3 | . 3 . Subdweller 5 | . . 5 Best Kill Streak 3 | . 3 1 Combat Bots Only 3 | . 3 1 Max Kills in Single Turn 1 | . 1 1 Gunslinging . | . . . Exploded . | . . . Melee . | . . . Uniques/NPCs Destroyed . | . . . Combat | -11 -10 -10 -------- Run | Yrd Mat Sub Hostile Shots Fired 74 | . 12 62 Missed 23 | . 3 20 Hits 51 | . 9 42 Projectile 51 | . 9 42 AOE 3 | . . 3 Damage Taken 1231 | . 89 1142 Core 273 | . 24 249 Absorbed by Shields . | . . . Core Remaining (%) 100 | 100 . . Volleys Fired 43 | . 8 35 Largest 2 | . 2 2 Hottest 140 | . 40 140 Shots Fired 74 | . 16 58 Gun 69 | . 16 53 Cannon 5 | . . 5 Launcher . | . . . Special . | . . . Kinetic 57 | . 16 41 Thermal 17 | . . 17 Explosive . | . . . Electromagnetic . | . . . Robot Hit Streak 19 | . 3 19 Robot Miss Streak 1 | . 1 1 Penetration Max . | . . . Secondary Targets . | . . . Shots Hit Robots 59 | . 10 49 Core Hits 23 | . 5 18 Critical Kills 1 | . . 1 Critical Parts Destroyed . | . . . Critical Strikes 1 | . . 1 Destroy 1 | . . 1 Melee Attacks . | . . . Impact . | . . . Slashing . | . . . Piercing . | . . . Sneak Attacks . | . . . Combat Hostiles . | . . . Follow-up Attacks . | . . . Damage Inflicted 664 | . 81 583 Guns 549 | . 76 473 Cannons 108 | . . 108 Explosions . | . . . Melee . | . . . Ramming 7 | . 5 2 Kinetic 362 | . 76 286 Thermal 295 | . . 295 Explosive . | . . . Electromagnetic . | . . . Impact . | . . . Slashing . | . . . Piercing . | . . . Highest Corruption . | . . . Average Corruption . | . . . Corruption Purged . | . . . Corruption Blocked . | . . . Overload Shots . | . . . Overflow Damage . | . . . Projectiles . | . . . Explosions . | . . . Melee . | . . . Knockbacks . | . . . Impact . | . . . Kinetic . | . . . Secondary . | . . . Self-Inflicted Damage 2 | . 1 1 Shots . | . . . Rammed 4 | . 3 1 Targets Rammed 4 | . 3 1 Kicked . | . . . Crushed . | . . . Highest Temperature 57 | . . 57 Average Temperature 20 | . . 20 Received Heat Transfer 225 | . 15 210 Siege Activations . | . . . Martial Activations . | . . . Shielding Activations . | . . . Robots Disrupted . | . . . Combat Hostiles . | . . . Robots Corrupted . | . . . Combat Hostiles . | . . . Parts Fried . | . . . Impact Corruptions . | . . . Robots Melted . | . . . Combat Hostiles . | . . . Parts Melted 2 | . . 2 Heat Transferred 373 | . . 373 Parts Sabotaged . | . . . Parts Stolen . | . . . Parts Stripped . | . . . Power Chain Reactions . | . . . Alert | -11 -10 -10 ------- Run | Yrd Mat Sub Maximum Alert Level . | . . . Low Security (%) 100 | 100 100 . Level 1 . | . . . Level 2 . | . . . Level 3 . | . . . Level 4 . | . . . Level 5 . | . . . High Security . | . . . Max Security . | . . . Peak Influence 135 | . 135 . Initial . | . . . Average 58 | . 64 . Influence Increases 180 | . 180 . Destroy 0b10 Robot/C 60 | . 60 . Destroy 0b10 Robot/NC 5 | . 5 . Destroy Leader 10 | . 10 . Lose Combat Pursuer 105 | . 105 . Influence Decreases 180 | . 160 20 Entered New Map 10 | . . 10 Time Decay 170 | . 160 10 Squads Dispatched . | . . . Investigation . | . . . Extermination . | . . . Reinforcement . | . . . Assault . | . . . Garrison . | . . . Intercept . | . . . Searches Triggered . | . . . Construction Impeded . | . . . Haulers Reinforced . | . . . Active Scanning Responses . | . . . Cargo Convoy Interrupts . | . . . Stealth | -11 -10 -10 --------- Run | Yrd Mat Sub Distress Signals 1 | . 1 . Communications Jammed . | . . . Distress Signals . | . . . Times Spotted 23 | . 12 11 Peak Tracking Total 6 | . 6 3 Tactical Retreats 5 | . 3 2 Traps | -11 -10 -10 ------- Run | Yrd Mat Sub Traps Triggered 2 | . 2 . Indirectly . | . . . Trap Hack Attempts . | . . . Triggered . | . . . Disarmed . | . . . Reprogrammed . | . . . Reused . | . . . Traps Extracted . | . . . Installed . | . . . Triggered . | . . . Machines | -11 -10 -10 ---------- Run | Yrd Mat Sub Machines Disabled . | . . . Max in Single Turn . | . . . Machines Repaired . | . . . Machines Dismantled . | . . . Machines Sabotaged . | . . . Overloaded Fab Kills . | . . . Hacking | -11 -10 -10 --------- Run | Yrd Mat Sub Machines Accessed . | . . . Terminals . | . . . Fabricators . | . . . Repair Stations . | . . . Recycling Units . | . . . Scanalyzers . | . . . Garrison Access . | . . . Total Hacks . | . . . Successful . | . . . Failed . | . . . Catastrophic . | . . . Database Lockouts . | . . . Manual . | . . . Terminals . | . . . Fabricators . | . . . Repair Stations . | . . . Recycling Units . | . . . Scanalyzers . | . . . Garrison Access . | . . . Terminal Hacks . | . . . Fabricator Hacks . | . . . Repair Station Hacks . | . . . Recycling Unit Hacks . | . . . Scanalyzer . | . . . Garrison Access Hacks . | . . . Unauthorized Hacks . | . . . Terminals . | . . . Fabricators . | . . . Repair Stations . | . . . Recycling Units . | . . . Scanalyzers . | . . . Garrison Access . | . . . Data Cores Recovered . | . . . Used . | . . . Hacking Detections . | . . . Full Trace Events . | . . . Feedback Events . | . . . Feedback Blocked . | . . . Robot Schematics Acquired . | . . . Robots Built . | . . . Authchips . | . . . Time . | . . . Total Robot Build Rating . | . . . Part Schematics Acquired . | . . . Parts Built . | . . . Authchips . | . . . Time . | . . . Total Part Build Rating . | . . . Part Studies Acquired . | . . . Parts Repaired . | . . . Time . | . . . Parts Recycled . | . . . Recycled Matter . | . . . Retrieved Matter . | . . . Retrieved Components . | . . . Parts Scanalyzed . | . . . Part Schematics Acquired . | . . . Parts Damaged . | . . . Bothacking | -11 -10 -10 ------------ Run | Yrd Mat Sub Used RIF Installer . | . . . Robots Hacked . | . . . Non-combat . | . . . Combat . | . . . Robot Hacks Applied . | . . . Relay Couplers Released . | . . . Fabnet Peak Effective % . | . . . Robots Rewired . | . . . Allies Hacked . | . . . Hacks Repelled . | . . . Allies | -11 -10 -10 -------- Run | Yrd Mat Sub Total Allies . | . . . Largest Group . | . . . Highest-Rated Group . | . . . Highest-Rated Ally . | . . . Total Orders . | . . . Ally Attacks . | . . . Total Damage . | . . . Kills . | . . . Allies Corrupted . | . . . Allies Melted . | . . . Intel | -11 -10 -10 ------- Run | Yrd Mat Sub Active Infowar (turns) 1219 | . . 1219 Terrain 1219 | . . 1219 Robot Analysis Total . | . . . Derelict Logs Recovered 1 | . . 1 Drone Launches . | . . . Drone Recoveries . | . . . Exploration | -11 -10 -10 ------------- Run | Yrd Mat Sub Turns Passed 2477 | 42 393 2042 Spaces Moved 1227 | 53 298 876 Core 548 | 46 296 206 Treads 672 | 7 2 663 Legs . | . . . Wheels 7 | . . 7 Hover . | . . . Flight . | . . . Fastest Speed 50 | 50 50 50 Average Speed 166 | 64 53 211 Slowest Speed 320 | 160 160 320 Overloaded Moves . | . . . Propulsion Burnouts . | . . . Robots Hopped . | . . . Potential Cave-ins . | . . . Cave-ins Triggered . | . . . Exploration Rate (%) 33 | 3 64 34 Regions Visited 2 Branch Regions 1 Pre-discovered Areas 1 | . . 1 Known Exits Taken . | . . . Unknown Exits Taken 2 | 1 1 . Scrap Searched . | . . . Spaces Dug . | . . . Terrain Destroyed . | . . . Melee . | . . . Projectile . | . . . AOE . | . . . Terrain Rammed . | . . . Walls Destroyed . | . . . Machines Disabled . | . . . Actions | -11 -10 -10 --------- Run | Yrd Mat Sub Total 1588 | 58 516 1014 Wait 258 | . 198 60 Move 1225 | 52 297 876 Hop . | . . . Pick Up 27 | 2 3 22 Fast Attach 12 | 4 5 3 Attach 11 | . 1 10 Detach 1 | . 1 . Swap 3 | . . 3 Drop 4 | . . 4 Fire 43 | . 8 35 Melee . | . . . Ram 4 | . 3 1 Kick . | . . . Crush . | . . . Escape Stasis . | . . . Rewire . | . . . Trap . | . . . Miscellaneous . | . . . Route ------- -11/Scrapyard -10/Materials (discovered 4 exits: [*Mat] / [*Min x2] / [*Sub]) -10/Subcaves (discovered 2 exits: Rec / [*Scr]) History --------- Turn | Location | Event 3 | -11/Scrapyard | Discovered new exit (range 16) 43 | -11/Scrapyard | Entered Materials 62 | -10/Materials | Discovered new exit (range 12) 79 | -10/Materials | Discovered new exit (range 15) 127 | -10/Materials | Discovered new exit (range 11) 311 | -10/Materials | Build established: Mutant 380 | -10/Materials | Discovered new exit (range 9) 436 | -10/Materials | Entered Subcaves 437 | -10/Subcaves | Approached by a straggling Scientist 642 | -10/Subcaves | Scientist uncovered a shortcut to Scraptown 694 | -10/Subcaves | Learned location of Zion (-6) 694 | -10/Subcaves | Met a Zionite searching for "candidates" 1243 | -10/Subcaves | Identified exit to Recycling 1636 | -10/Subcaves | A Subdweller sparked back to life 1636 | -10/Subcaves | A Subdweller sparked back to life 1636 | -10/Subcaves | A Subdweller sparked back to life 1645 | -10/Subcaves | Core integrity fell below 50% 1687 | -10/Subcaves | Lost 4 parts (1p1n1u1w) 1848 | -10/Subcaves | Found Prototype Device 2039 | -10/Subcaves | Build established: Scavenger-Mutant 2309 | -10/Subcaves | Released all parts (5) 2384 | -10/Subcaves | Ambushed by Subdweller buried in earth 2394 | -10/Subcaves | Core integrity fell below 20% 2412 | -10/Subcaves | A swath of the cavern ceiling suddenly collapsed 2477 | -10/Subcaves | Identified Power Bank 2478 | -10/Subcaves | Destroyed by 3X-OCX(R) with Subdweller Machine Gun Last Messages --------------- 02334_ Dropped Humpback. [Achievement: Do Not Disturb] 02384_ 96-HDX(R) destroyed. 02385_ PK-1PN(R): "GOODGOOD!" 02392_ Dropped Scrap Shield. 02393_ Acquired Scrap Shield. 02410_ Acquired Hcp. Storage Unit. 02411_ Acquired Prototype Device. A swath of the cavern ceiling suddenly collapses. 02413_ Acquired Sub. Monowheel. 02417_ Acquired Sub. Laser. 02418_ Dropped Lgt. Assault Rifle. 02419_ Dropped Sub. Laser. 02419_ Acquired Lgt. Assault Rifle. 02455_ MN-0DZ(u) tweaks Twisted Machinery. 02470_ Scrap Shield destroyed. 02472_ Lgt. Assault Rifle destroyed. 02476_ Slammed into 3X-OCX(R). 02477_ Identified Power Bank. Map ----- +----------------------------------------------------+ | ?????????????????????????????????????????????????? | | ?????????????????????????????????????????????????? | | ?????????????????????????????????????????????????? | | ?????????????????????????????????????????????????? | | ???????????#????????#????????????????????????????? | | ???????????????????#????#????????????????????????? | | ?#????#??????????????????????????????????????????? | | ?#?##???????#??#?????????????????????????????????? | | ???????#?????????##??????????????????????????????? | | ???????#?????????????????????????????????????????? | | #?????#?????????###??????????????????????????????? | | ????#?????##??????#??????????????????????????????? | | ???????????????????????????????#?????????????????? | | ?#???????????????????#####??????????#????????????? | | ?#??#???#??####?????##" #??#??#?????????????????? | | ????######## ##?#### """##??#???????????????????? | | #??#?## # # ###""""""""##????????#????????????? | | ???#?# """""""" #???????#?#????????????? | | ##???## ## ##??##???##?? %???????? | | ##??# # ####? " ##????## ### #?????? | | #### ### ###??## " #???? %?????? | | # ## ###?####""## ??? ??????? | | # ##### ###"##???? #??????? | | # # #### # # # # ""###??# ????# | | ########?## """ ""R" #?## ??? % | | ##### ##?# " ""@ R" #?## #??? | | ## #### # ""### " #?# #??# ? | | # # #### ""### "#### ##? % ?? | | #?# #??##" ## "# #?? #??? | | ##?## ##??### ### ## ???# #???? | | | #??# # ###???# #?# ## #???# #???? | | #??# ## #####?? ?# ## #?## #????? | | #?## ### ###" ??? ## ## ### % #????? | | #?# #?####" #??#### % #????? | | #### ###?#?# ######## ### #????? | | #??#??# # # ## ##?## #????? | | ##?#### ## ##??## %##????? | | "" ##?#?## #?### #?????? | | # " ""####### # #### ##?????? | | # ###### ####### ##?# ##??????? | | # ##??## " !##????########??# ##???????? | | ###### " ####??#?????#??# ####????????? | | " " "#"# "##" ####??????### #########????? | | """" """""##" ##??##### ###"""""##???" | | "" " """"###" #??# #"" = ""##""" | | ## ##?#"" ##??## =!=* """"# | | #?###??# " ##????## =!] #""""# | | # #????#?##" ###?????## [ !&=&# "#" | | ## #####??##"" #?#?????## ##"" &"& ## | | ## ""##?#???##" #####??#????# ####""#####?# | +----------------------------------------------------+ Best States ------------- Heat Dissipation 25 Energy Generation 10 Energy Capacity 200 Matter Stores 300 Matter Capacity 300 Sight Range 16 Terrain Scan Range 16 Terrain Scan Density 10 Armor Coverage 800 Evasion (%) 50 Recoil Reduction 2 Item Schematics ----------------- None Robot Schematics ------------------ None Fabricated ------------ Nothing Repaired ---------- Nothing Studied --------- None Alien Tech Used ----------------- None Achievements -------------- Do Not Disturb Nice Directions, Buddy Physics Hates This One Trick Challenges ------------ None Game ------ Seed OpticalFactoryDesublimator Manual? 0 Play Time 00:11:40 Cumulative 317.6 hours Start 2025.10.23 @ 18:04:33 End 2025.10.23 @ 18:14:05 Sessions 1 Manual Loads 0 Difficulty Rogue Special Mode None Game No. 226 Rogue 226 Adventurer 0 Explorer 0 Win Type - Total 20 Types 9/0/6/1/1/0/1/1/0/1 Lore% 82 Gallery% 75 Achievement% 50 Wizard Run 0 Options --------- Layout 1 ASCII 0 Keyboard 0 Movement Mouse Keybinds 0 Fullscreen 2 Font 24/Smallcaps Map View 50x35 Zoom Use 0% Tactical HUD 1 Map Filters NONE Filters NONE Steam 1 RUN: a795f85b-27ca-4eec-8d04-f7c4a04115c1